bitfinex-derivatives/quotes_ETHF0:USTF0_20250627
["timestamp","ask_amount","ask_price","bid_price","bid_amount"]
[1751003963140,1.08345771,2440.5,2440.3,29.55057745]
[1751003963435,0.40957,2440.5,2440.4,24.84]
[1751003963640,1.49286096,2440.5,2440.4,24.84]
[1751003964440,1.08329096,2440.5,2440.4,25.24959]
[1751003966036,0.6949,2440.8,2440.7,0.40954]
[1751003966240,1.77753341,2440.8,2440.7,25.24854]
[1751003967542,1.08263341,2440.8,2440.7,25.24854]
[1751003967745,9.36926464,2440.9,2440.8,0.40952]
[1751003968041,10.45147746,2440.9,2440.8,0.40952]
[1751003969639,9.36926464,2440.9,2440.8,0.40952]
[1751003969837,9.77876464,2440.9,2440.7,25.24853]
[1751003970339,9.77876464,2440.9,2440.7,24.839]
[1751003970545,0.40952,2440.8,2440.7,24.839]
[1751003970939,9.36926464,2440.9,2440.7,24.839]
[1751003971140,1.3487,2440.8,2440.7,24.839]
[1751003971551,1.75822,2440.8,2440.7,24.839]
[1751003972348,1.3487,2440.8,2440.7,24.839]
[1751003973047,1.3487,2440.8,2440.7,25.24854]
[1751003973647,3.9189,2441.0,2440.7,25.24854]
[1751003973847,4.3284,2441.0,2440.7,25.24854]
[1751003974048,0.40954,2440.7,2440.5,0.40957]
[1751003974349,0.40953,2440.8,2440.6,31.60855]
[1751003974552,1.84063,2440.8,2440.6,31.199]
[1751003974847,6.57081745,2440.7,2440.6,24.835]
[1751003975047,8.69611745,2440.7,2440.6,24.835]
[1751003977149,0.40957,2440.6,2440.4,0.40958]
[1751003977446,2.49547,2440.6,2440.4,0.40958]
[1751003977636,2.49547,2440.6,2440.5,24.834]
[1751003978949,0.40957,2440.5,2440.4,0.40958]
[1751003979152,1.74157,2440.5,2440.4,31.197]
[1751003979444,0.40961,2440.3,2440.1,0.40964]
[1751003979648,4.9494,2440.4,2440.1,24.834]
[1751003979852,4.9494,2440.4,2440.1,25.24363]
[1751003980052,0.7125,2440.3,2440.1,25.24363]
[1751003980351,0.7125,2440.3,2440.2,3.36309745]
[1751003980952,3.2078,2440.4,2440.3,0.4096]
[1751003981252,3.2078,2440.4,2440.3,25.2436]
[1751003981949,1.12207,2440.6,2440.3,25.2436]
[1751003982152,2.51607,2440.6,2440.3,25.2436]
[1751003982453,0.40957,2440.5,2440.3,31.6066]
[1751003983252,0.40957,2440.5,2440.3,31.197]
[1751003983453,0.40959,2440.4,2440.3,31.197]
[1751003983754,1.80358,2440.5,2440.3,31.197]
[1751003984051,0.40959,2440.4,2440.3,31.197]
[1751003985254,1.80358,2440.5,2440.3,31.197]
[1751003985548,1.394,2440.5,2440.3,31.197]
[1751003986252,1.80357,2440.5,2440.3,31.197]
[1751003986456,1.394,2440.5,2440.3,31.6066]
[1751003986948,3.61739,2440.4,2440.3,31.197]
[1751003987148,4.5666,2440.4,2440.3,31.197]
[1751003990555,4.97619,2440.4,2440.3,31.197]
[1751003990754,4.5666,2440.4,2440.3,31.197]
[1751003991853,4.97619,2440.4,2440.2,0.40962]
[1751003992056,5.03677745,2440.3,2439.8,7.3645]
[1751003992358,1.3994,2440.2,2440.0,0.40964]
[1751003992560,1.3994,2440.2,2440.1,24.835]
[1751003992950,1.3994,2440.2,2440.1,25.24464]
[1751003993263,1.3994,2440.2,2440.1,24.835]
[1751003995257,1.3994,2440.2,2440.1,25.24464]
[1751003995559,1.3994,2440.2,2440.1,24.835]
[1751003995747,1.80902,2440.2,2440.1,24.835]
[1751003995953,1.3994,2440.2,2440.1,24.835]
[1751003996655,1.3994,2440.2,2440.1,25.24464]
[1751003996952,1.3994,2440.2,2440.1,24.835]
[1751003999861,1.80902,2440.2,2440.1,24.835]
[1751004000560,1.09352,2440.3,2440.1,24.835]
[1751004001661,2.42632,2440.3,2440.1,24.835]
[1751004002359,2.42632,2440.3,2440.1,27.78847745]
[1751004002564,3.2078,2440.4,2440.2,6.77162]
[1751004002766,3.61739,2440.4,2440.3,2.95347745]
[1751004002956,4.70190333,2440.4,2440.3,2.95347745]
[1751004003157,0.4096,2440.3,2440.2,7.0433]
[1751004003359,1.08281,2440.3,2440.2,31.197]
[1751004003958,0.6732,2440.3,2440.2,31.197]
[1751004004167,1.0828,2440.3,2440.2,31.197]
[1751004005660,0.6732,2440.3,2440.2,31.197]
[1751004006072,1.0828,2440.3,2440.2,31.197]
[1751004006364,0.40962,2440.2,2440.0,0.7025]
[1751004006666,2.50621,2440.3,2440.1,31.197]
[1751004007364,0.40962,2440.2,2440.1,31.197]
[1751004008167,2.50621,2440.3,2440.1,31.197]
[1751004008467,0.40962,2440.2,2440.1,31.197]
[1751004008857,0.40963,2440.2,2440.0,0.7025]
[1751004009061,5.71401,2440.3,2440.1,24.836]
[1751004009261,0.40962,2440.2,2440.1,24.836]
[1751004010764,5.71402,2440.3,2440.1,24.836]
[1751004011571,3.881,2440.3,2440.1,25.24563]
[1751004011770,3.2078,2440.3,2440.2,3.36309745]
[1751004012270,3.2078,2440.3,2440.2,2.95347745]
[1751004012462,3.6174,2440.3,2440.2,2.95347745]
[1751004012657,3.2078,2440.3,2440.2,2.95347745]
[1751004012865,3.6174,2440.3,2440.2,2.95347745]
[1751004013165,3.6174,2440.3,2440.1,24.836]
[1751004013466,3.6174,2440.3,2440.2,24.835]
[1751004013665,4.70168402,2440.3,2440.2,24.835]
[1751004014365,3.2078,2440.3,2440.2,24.835]
[1751004014873,4.701585,2440.3,2440.2,24.835]
[1751004015263,4.291985,2440.3,2440.2,24.835]
[1751004015573,3.2078,2440.3,2440.2,24.835]
[1751004015764,3.2078,2440.3,2440.2,25.24462]
[1751004016264,0.40958,2440.5,2440.2,28.19809745]
[1751004016463,0.40958,2440.5,2440.4,2.95347745]
[1751004016664,0.40958,2440.5,2440.4,24.835]
[1751004016665,1.49386449,2440.5,2440.4,24.835]
[1751004017670,1.49386449,2440.5,2440.2,4.03579745]
[1751004017871,1.08428449,2440.4,2440.3,31.196]
[1751004018373,3.9287,2440.6,2440.4,0.40958]
[1751004018670,4.33825,2440.6,2440.5,0.6883]
[1751004018865,5.42239523,2440.6,2440.5,0.6883]
[1751004019969,5.42239523,2440.6,2440.4,2.95347745]
[1751004020273,1.08414523,2440.5,2440.4,2.95347745]
[1751004020666,0.40959,2440.4,2440.3,31.196]
[1751004020873,1.84898,2440.5,2440.3,31.196]
[1751004021169,0.4096,2440.3,2440.2,47.63397745]
[1751004021374,0.4096,2440.3,2440.2,75.8765]
[1751004022180,1.8307,2440.4,2440.2,34.4038]
[1751004022373,0.6643,2440.3,2440.2,34.4038]
[1751004023775,0.6643,2440.3,2440.2,37.35727745]
[1751004024077,1.0739,2440.3,2440.2,37.35727745]
[1751004024271,1.0739,2440.3,2440.0,41.4883]
[1751004024571,0.6643,2440.3,2440.1,31.195]
[1751004025377,0.6643,2440.3,2440.1,31.60463]
[1751004025579,0.6643,2440.3,2440.1,34.55810745]
[1751004026271,0.6643,2440.3,2440.2,31.196]
[1751004029371,1.0739,2440.3,2440.2,31.196]
[1751004033587,2.15817012,2440.3,2440.2,31.196]
[1751004035398,7.90984757,2440.3,2440.1,24.833]
[1751004035592,3.65589012,2440.2,2440.1,24.833]
[1751004037198,3.65589012,2440.2,2440.0,24.833]
[1751004037496,2.162,2440.2,2439.9,6.361]
[1751004037695,3.2078,2440.0,2439.9,6.361]
[1751004037898,3.2078,2440.0,2439.9,31.60367]
[1751004038493,1.12882,2440.2,2439.9,31.60366]
[1751004038694,2.51732,2440.2,2439.9,31.60366]
[1751004039196,2.1077,2440.2,2440.0,0.40965]
[1751004039696,2.1077,2440.2,2439.9,31.60366]
[1751004040097,2.51732,2440.2,2439.9,31.60366]
[1751004040399,2.1077,2440.2,2439.9,31.60366]
[1751004040903,1.3943,2440.1,2439.9,31.60366]
[1751004041094,1.3943,2440.1,2439.9,31.194]
[1751004041390,1.3943,2440.1,2440.0,0.40965]
[1751004042899,1.3943,2440.1,2439.9,31.60366]
[1751004043100,1.3943,2440.1,2440.0,0.40965]
[1751004043304,1.3943,2440.1,2439.9,31.60366]
[1751004043601,1.3943,2440.1,2440.0,0.40965]
[1751004043802,1.3943,2440.1,2439.9,31.60366]
[1751004046408,1.3943,2440.1,2440.0,0.40965]
[1751004046808,1.3943,2440.1,2439.9,31.60366]
[1751004047321,0.7192,2440.2,2439.9,31.60366]
[1751004047713,1.12882,2440.2,2439.9,31.60366]
[1751004048611,2.45452,2440.2,2439.9,31.60366]
[1751004049919,2.45452,2440.2,2439.9,31.194]
[1751004050120,1.3704,2440.1,2439.9,31.60367]
[1751004052018,3.8721,2440.3,2440.0,2.95347745]
[1751004052213,3.8721,2440.3,2440.1,0.6616]
[1751004052214,4.2817,2440.3,2440.1,0.6616]
[1751004052822,3.8721,2440.3,2440.1,0.6616]
[1751004053624,3.2078,2440.3,2440.2,2.95347745]
[1751004053922,4.29082144,2440.3,2440.2,3.36309745]
[1751004054221,1.08302144,2440.3,2440.2,2.95347745]
[1751004054410,0.40959,2440.4,2440.2,2.95347745]
[1751004057621,0.40958,2440.5,2440.2,2.95347745]
[1751004058122,5.03617,2440.6,2440.2,3.36309745]
[1751004058327,2.95347745,2440.8,2440.4,3.36306745]
[1751004058328,1.08297975,2440.5,2440.4,3.36306745]
[1751004058521,1.08297975,2440.5,2440.4,4.09376745]
[1751004058728,1.08297975,2440.5,2440.4,4.80986745]
[1751004059034,1.08297975,2440.5,2440.4,4.40027745]
[1751004059319,0.40954,2440.7,2440.4,4.80985745]
[1751004059624,1.08279706,2440.6,2440.4,4.80985745]
[1751004059824,0.40954,2440.7,2440.4,4.80985745]
[1751004060025,1.08282746,2440.6,2440.4,4.80985745]
[1751004060225,0.40954,2440.7,2440.4,4.80985745]
[1751004060420,1.08283101,2440.6,2440.4,4.80985745]
[1751004060621,0.40954,2440.7,2440.4,4.80985745]
[1751004060821,1.0828734,2440.6,2440.4,4.80985745]
[1751004061027,0.40954,2440.7,2440.4,4.80985745]
[1751004061229,1.08286866,2440.6,2440.4,4.80985745]
[1751004061427,0.40954,2440.7,2440.4,4.80985745]
[1751004061626,1.08284619,2440.6,2440.4,4.80985745]
[1751004061826,0.40954,2440.7,2440.4,4.80985745]
[1751004062022,1.08274129,2440.6,2440.4,4.80985745]
[1751004062324,0.40954,2440.7,2440.4,4.80985745]
[1751004062526,1.12413,2440.8,2440.4,4.80985745]
[1751004062724,1.08259832,2440.7,2440.4,4.80985745]
[1751004063028,0.40954,2440.7,2440.4,4.80985745]
[1751004064033,2.52003,2440.8,2440.4,4.80985745]
[1751004064332,1.08246446,2440.7,2440.4,4.40027745]
[1751004064534,0.40955,2440.6,2440.4,4.40027745]
[1751004066030,0.40955,2440.7,2440.4,4.80985745]
[1751004066229,0.40955,2440.6,2440.4,4.80985745]
[1751004066630,0.40955,2440.6,2440.4,4.40027745]
[1751004067632,0.40955,2440.6,2440.4,1.4468]
[1751004067929,2.1105,2440.8,2440.4,1.4468]
[1751004068130,0.40956,2440.6,2440.4,1.4468]
[1751004071635,0.40957,2440.5,2440.4,1.4468]
[1751004071836,0.40956,2440.6,2440.4,1.4468]
[1751004072038,1.74975,2440.7,2440.5,2.95347745]
[1751004072229,0.40955,2440.7,2440.5,2.95347745]
[1751004072531,0.40955,2440.6,2440.5,2.95347745]
[1751004073035,0.40955,2440.7,2440.5,2.95347745]
[1751004073536,3.2078,2440.9,2440.6,24.824]
[1751004073737,1.08167001,2440.8,2440.7,3.64357745]
[1751004075140,1.49119001,2440.8,2440.7,3.64357745]
[1751004075536,1.49119001,2440.8,2440.7,2.95347745]
[1751004075839,2.15249001,2440.8,2440.6,24.824]
[1751004076034,1.07082,2440.8,2440.6,24.824]
[1751004079444,0.6613,2440.8,2440.6,25.23355]
[1751004080648,1.07082,2440.8,2440.6,25.23355]
[1751004081245,0.6613,2440.8,2440.6,25.23355]
[1751004082045,1.07082,2440.8,2440.6,25.23355]
[1751004082346,1.07082,2440.8,2440.6,24.824]
[1751004084348,1.08258505,2440.7,2440.6,24.824]
[1751004097065,1.08258505,2440.7,2440.6,25.23355]
[1751004097867,1.08258505,2440.7,2440.6,24.824]
[1751004100270,1.08258505,2440.7,2440.6,27.30122155]
[1751004100563,0.40947,2441.1,2440.6,30.09947155]
[1751004100763,1.13135,2441.3,2441.0,2.06767155]
[1751004100963,0.40952,2440.8,2440.7,5.936]
[1751004101168,2.47719155,2440.8,2440.7,24.815]
[1751004101769,0.40952,2440.8,2440.7,24.815]
[1751004102170,1.79942,2440.8,2440.7,24.815]
[1751004103265,5.00722,2440.8,2440.7,24.815]
[1751004103974,4.5977,2440.8,2440.7,24.815]
[1751004104271,3.2078,2440.8,2440.7,28.17889765]
[1751004104672,1.1389,2440.9,2440.7,27.76935765]
[1751004104966,0.7294,2440.9,2440.7,28.17888765]
[1751004106974,0.7294,2440.9,2440.8,0.40952]
[1751004107476,1.07159,2441.0,2440.8,0.40952]
[1751004107974,0.6621,2441.0,2440.8,0.40952]
[1751004108176,0.6621,2441.0,2440.9,0.4095]
[1751004108374,0.4095,2440.9,2440.7,24.815]
[1751004108572,1.8565,2440.9,2440.7,24.815]
[1751004108870,2.1423,2440.9,2440.7,24.815]
[1751004109077,2.1423,2440.9,2440.7,25.22453]
[1751004110979,2.1423,2440.9,2440.7,24.815]
[1751004111980,2.5518,2440.9,2440.7,24.815]
[1751004113083,2.50536241,2440.8,2440.7,24.815]
[1751004113987,1.07866241,2440.8,2440.7,25.22454]
[1751004114283,0.6953,2440.9,2440.7,25.22454]
[1751004114284,0.6621,2441.0,2440.8,0.40951]
[1751004114476,1.07867331,2440.9,2440.8,1.07051]
[1751004114676,1.07867331,2440.9,2440.8,25.88251]
[1751004117481,3.2078,2441.1,2440.9,0.40949]
[1751004117800,1.07869751,2441.0,2440.9,0.40949]
[1751004118995,1.07869751,2441.0,2440.9,3.36384765]
[1751004119494,14.46728393,2441.5,2441.0,1.02372]
[1751004119693,12.03550296,2441.5,2441.3,3.36377765]
[1751004119997,12.03550296,2441.5,2441.3,25.21942]
[1751004120887,12.69880296,2441.5,2441.3,25.21942]
[1751004121089,12.69880296,2441.5,2441.3,24.81]
[1751004121395,14.49601296,2441.5,2441.3,24.81]
[1751004121594,1.3878,2441.4,2441.3,25.21943]
[1751004121995,1.3878,2441.4,2441.3,24.81]
[1751004122896,1.3878,2441.4,2441.3,25.21943]
[1751004123087,1.79722,2441.4,2441.3,24.81]
[1751004124893,1.3878,2441.4,2441.3,24.81]
[1751004125196,1.79722,2441.4,2441.3,24.81]
[1751004127396,1.3878,2441.4,2441.3,24.81]
[1751004127793,13.10821296,2441.5,2441.3,24.81]
[1751004127998,12.69880296,2441.5,2441.3,24.81]
[1751004128198,13.10822296,2441.5,2441.3,24.81]
[1751004128492,0.40942,2441.4,2441.3,24.81]
[1751004131203,1.83192,2441.4,2441.3,24.81]
[1751004131403,2.90326181,2441.4,2441.3,24.81]
[1751004132807,2.49384181,2441.4,2441.3,24.81]
[1751004133104,1.07134181,2441.4,2441.3,24.81]
[1751004133404,1.48076181,2441.4,2441.3,24.81]
[1751004135806,0.40944,2441.3,2441.1,3.36381765]
[1751004136009,0.40944,2441.3,2441.2,31.152]
[1751004136409,1.48120767,2441.3,2441.2,31.152]
[1751004138314,4.02612532,2441.3,2441.0,0.7071]
[1751004138513,3.97806765,2441.1,2440.6,3.2078]
[1751004138710,2.95435765,2440.9,2440.7,31.151]
[1751004138916,0.40952,2440.8,2440.7,31.151]
[1751004139213,2.44942,2440.8,2440.7,31.151]
[1751004139600,2.0399,2440.8,2440.7,31.151]
[1751004140010,2.0399,2440.8,2440.7,31.153]
[1751004140707,0.6841,2441.2,2440.7,39.10735765]
[1751004141013,1.0716957,2441.1,2441.0,3.36383765]
[1751004141210,1.0716957,2441.1,2441.0,34.51683765]
[1751004143115,1.10625,2441.3,2441.0,34.51683765]
[1751004143416,1.07190571,2441.2,2441.0,34.51683765]
[1751004143714,1.10623,2441.3,2441.0,34.51683765]
[1751004144012,1.07195289,2441.2,2441.0,34.51683765]
[1751004144214,1.10623,2441.3,2441.0,34.51683765]
[1751004144418,1.07207604,2441.2,2441.0,34.51683765]
[1751004144608,1.10623,2441.3,2441.0,34.51683765]
[1751004144808,1.07211931,2441.2,2441.0,34.51683765]
[1751004145009,1.10623,2441.3,2441.0,34.51683765]
[1751004145211,1.48178144,2441.2,2441.0,31.153]
[1751004145516,1.07235228,2441.1,2441.0,31.56248]
[1751004148222,1.07235228,2441.1,2441.0,0.40948]
[1751004148409,1.07235228,2441.1,2441.0,31.56248]
[1751004149720,1.07235228,2441.1,2441.0,31.153]
[1751004150826,1.07235228,2441.1,2441.0,31.56248]
[1751004151321,1.07235228,2441.1,2441.0,31.153]
[1751004151532,1.07235228,2441.1,2441.0,31.56248]
[1751004159125,1.07235228,2441.1,2441.0,0.40948]
[1751004159328,1.07235228,2441.1,2441.0,25.21148]
[1751004162328,1.07235228,2441.1,2441.0,28.16583765]
[1751004164425,1.07235228,2441.1,2440.9,3.2078]
[1751004164629,0.7314,2441.0,2440.9,9.9633]
[1751004164829,0.7314,2441.0,2440.9,34.7643]
[1751004165626,0.7314,2441.0,2440.9,9.5538]
[1751004165833,0.7314,2441.0,2440.9,34.7643]
[1751004169229,0.7314,2441.0,2440.9,28.0078]
[1751004169737,0.7314,2441.0,2440.9,28.4173]
[1751004169933,2.0751,2441.0,2440.9,28.4173]
[1751004170235,3.14766675,2441.0,2440.9,28.4173]
[1751004171532,0.40953,2440.8,2440.6,3.2078]
[1751004171734,0.6598,2440.7,2440.6,3.61735]
[1751004172036,0.6598,2440.7,2440.6,28.41735]
[1751004172935,3.10311919,2440.7,2440.6,28.41735]
[1751004173337,2.0297,2440.7,2440.6,28.41835]
[1751004173639,2.0297,2440.7,2440.6,3.61735]
[1751004173938,2.0297,2440.7,2440.6,28.41835]
[1751004174735,2.0297,2440.7,2440.6,28.0088]
[1751004176739,2.43923,2440.7,2440.6,28.0078]
[1751004179840,3.51188731,2440.7,2440.6,28.0078]
[1751004180533,3.51188731,2440.7,2440.6,3.2078]
[1751004180735,0.40957,2440.5,2440.4,6.347]
[1751004181039,0.40958,2440.4,2440.3,3.2078]
[1751004181240,2.44748,2440.4,2440.3,9.5548]
[1751004181541,2.44748,2440.4,2440.3,34.3558]
[1751004184842,2.44748,2440.4,2440.3,9.5548]
[1751004185043,2.44748,2440.4,2440.3,34.3568]
[1751004187643,2.44748,2440.4,2440.3,9.5548]
[1751004187845,2.44748,2440.4,2440.3,34.3568]
[1751004190148,2.44748,2440.4,2440.3,3.2078]
[1751004190449,2.44748,2440.4,2440.3,28.0098]
[1751004190650,2.0379,2440.4,2440.3,28.0098]
[1751004190841,1.10083,2440.8,2440.5,0.40956]
[1751004191041,1.77989073,2440.7,2440.6,28.16590765]
[1751004191548,1.322,2441.0,2440.8,0.40951]
[1751004191846,1.07177687,2440.9,2440.8,28.16586765]
[1751004193451,1.48127687,2440.9,2440.8,24.802]
[1751004193642,1.48127687,2440.9,2440.8,25.21152]
[1751004193842,1.07177687,2440.9,2440.8,25.21152]
[1751004194140,1.07177687,2440.9,2440.8,24.802]
[1751004194141,1.48127687,2440.9,2440.8,24.802]
[1751004194341,2.87827687,2440.9,2440.8,24.802]
[1751004197054,2.87827687,2440.9,2440.3,4.5817]
[1751004197055,2.46877687,2440.9,2440.3,4.5817]
[1751004197256,0.40957,2440.5,2440.4,24.8]
[1751004197944,0.40957,2440.5,2440.4,25.20958]
[1751004198851,0.40957,2440.5,2440.4,24.8]
[1751004199356,1.80707,2440.5,2440.4,24.8]
[1751004200548,2.8798985,2440.5,2440.4,24.8]
[1751004201643,2.8798985,2440.5,2440.3,3.2078]
[1751004201644,0.40958,2440.4,2440.3,3.2078]
[1751004201850,0.40958,2440.5,2440.3,28.0078]
[1751004202051,0.40958,2440.4,2440.2,3.36396765]
[1751004202348,0.40958,2440.4,2440.3,24.8]
[1751004203559,0.40958,2440.5,2440.3,24.8]
[1751004204058,0.40958,2440.4,2440.3,24.8]
[1751004205456,0.40958,2440.5,2440.3,24.8]
[1751004206159,0.40958,2440.4,2440.3,24.8]
[1751004206854,0.40958,2440.5,2440.3,24.8]
[1751004207354,1.07433896,2440.4,2440.3,25.2096]
[1751004207554,1.79656,2440.6,2440.3,25.2096]
[1751004207852,1.48380035,2440.5,2440.3,25.2096]
[1751004208051,0.40958,2440.5,2440.3,25.2096]
[1751004208252,0.40958,2440.4,2440.3,24.8]
[1751004208757,1.48393834,2440.4,2440.3,24.8]
[1751004209351,1.07435834,2440.4,2440.3,24.8]
[1751004210858,1.07435834,2440.4,2440.3,25.2096]
[1751004211062,0.6954,2440.6,2440.4,0.40958]
[1751004211256,1.86973,2440.8,2440.5,28.16392765]
[1751004211454,1.07449323,2440.7,2440.5,28.16392765]
[1751004211653,1.07449323,2440.6,2440.5,28.16392765]
[1751004211856,1.07449323,2440.6,2440.5,33.52022765]
[1751004212056,0.40947,2441.1,2440.8,0.40952]
[1751004212259,1.07450618,2441.0,2440.9,27.75435765]
[1751004212554,1.07450618,2441.0,2440.5,47.64775765]
[1751004212760,0.40953,2440.7,2440.6,31.144]
[1751004212951,0.40953,2440.7,2440.5,6.16215765]
[1751004213261,1.48403618,2440.7,2440.6,31.144]
[1751004214159,0.40956,2440.6,2440.4,0.714]
[1751004214460,1.07450618,2440.5,2440.4,6.75358]
[1751004214664,1.07450618,2440.5,2440.4,31.56658]
[1751004215464,0.6702,2440.6,2440.4,31.56658]
[1751004215663,1.07976,2440.6,2440.3,4.04444765]
[1751004215964,2.085,2440.6,2440.4,31.159]
[1751004216152,0.40957,2440.5,2440.4,31.159]
[1751004216348,1.82437,2440.5,2440.4,31.159]
[1751004216761,1.4148,2440.5,2440.4,31.159]
[1751004217263,1.82437,2440.5,2440.4,31.159]
[1751004220263,0.40959,2440.4,2440.3,6.349]
[1751004220456,0.40959,2440.4,2440.3,31.155]
[1751004221062,0.40959,2440.4,2440.2,0.40962]
[1751004221265,0.40959,2440.4,2440.3,24.806]
[1751004221460,0.40959,2440.4,2440.2,6.75862]
[1751004221661,0.40959,2440.4,2440.3,24.805]
[1751004222158,0.40959,2440.4,2440.3,24.804]
[1751004222464,1.48473239,2440.4,2440.3,24.804]
[1751004222661,1.07514239,2440.4,2440.1,6.84265765]
[1751004222866,0.40962,2440.2,2440.1,9.5568]
[1751004223163,1.07971,2440.3,2440.2,24.801]
[1751004223558,0.6701,2440.3,2440.2,24.801]
[1751004224170,1.0797,2440.3,2440.2,24.801]
[1751004225354,0.40962,2440.2,2440.1,3.2078]
[1751004225560,0.40962,2440.2,2440.1,24.802]
[1751004225561,0.40963,2440.2,2440.1,24.802]
[1751004225767,3.53656911,2440.2,2440.1,24.802]
[1751004226069,3.12693911,2440.2,2440.1,24.802]
[1751004226369,2.0517,2440.2,2440.1,24.802]
[1751004227163,2.46132,2440.2,2440.1,24.802]
[1751004227369,2.0517,2440.2,2440.1,27.75635765]
[1751004227565,2.0517,2440.2,2440.1,28.16598765]
[1751004229869,2.0517,2440.2,2440.1,25.21163]
[1751004231670,2.0517,2440.2,2440.1,24.802]
[1751004231975,2.0517,2440.2,2440.1,25.21163]
[1751004232570,0.6743,2440.2,2440.1,25.21163]
[1751004232776,0.6743,2440.2,2439.8,4.24325619]
[1751004232968,0.6743,2440.2,2439.9,24.802]
[1751004233271,0.6701,2440.3,2440.2,0.40962]
[1751004233473,0.6701,2440.3,2440.1,0.40963]
[1751004233672,0.6701,2440.3,2440.2,2.95435765]
[1751004236682,0.6701,2440.3,2440.2,3.36397765]
[1751004236983,0.40956,2440.6,2440.3,0.4096]
[1751004237176,1.07936394,2440.5,2440.2,28.16696765]
[1751004237375,1.07936394,2440.4,2440.2,28.16696765]
[1751004237575,1.08146,2440.6,2440.2,28.16696765]
[1751004237782,1.0792378,2440.5,2440.2,28.16696765]
[1751004237981,1.08146,2440.6,2440.2,28.16696765]
[1751004238182,1.07927466,2440.5,2440.2,28.16696765]
[1751004238482,1.08146,2440.6,2440.2,28.16696765]
[1751004238677,1.07929429,2440.5,2440.2,28.16696765]
[1751004238876,1.08146,2440.6,2440.2,28.16696765]
[1751004239074,1.07927865,2440.5,2440.2,28.16696765]
[1751004239274,0.40957,2440.5,2440.2,28.16696765]
[1751004239686,0.6719,2440.6,2440.2,27.75735765]
[1751004239877,2.40898546,2440.5,2440.2,24.803]
[1751004240072,0.4096,2440.3,2440.2,24.803]
[1751004240781,1.73929,2440.4,2440.2,24.803]
[1751004243085,1.3297,2440.4,2440.2,25.21262]
[1751004243282,0.40958,2440.5,2440.2,28.16697765]
[1751004243481,1.07957286,2440.4,2440.2,28.16697765]
[1751004243778,0.40958,2440.5,2440.2,28.16697765]
[1751004243989,1.07966495,2440.4,2440.2,24.803]
[1751004244283,0.40958,2440.5,2440.2,24.803]
[1751004244482,1.07974563,2440.4,2440.2,24.803]
[1751004244682,0.40958,2440.5,2440.2,24.803]
[1751004244979,1.48936829,2440.4,2440.2,24.803]
[1751004245180,0.40959,2440.4,2440.2,24.803]
[1751004245389,0.4096,2440.3,2440.2,24.803]
[1751004246282,0.40962,2440.2,2440.1,1.4377]
[1751004246479,0.40962,2440.2,2440.1,32.5817]
[1751004247083,0.40962,2440.2,2439.9,3.61746]
[1751004247383,0.40963,2440.2,2439.9,3.61746]
[1751004247584,0.40963,2440.2,2439.9,3.2078]
[1751004247780,0.40963,2440.2,2439.9,6.16215765]
[1751004247980,0.40963,2440.2,2439.9,6.57181765]
[1751004248178,0.40963,2440.2,2440.0,24.801]
[1751004248581,1.06941,2440.3,2440.0,25.21065]
[1751004249689,0.40962,2440.2,2440.0,25.21065]
[1751004249884,0.40962,2440.2,2440.0,24.801]
[1751004250085,0.40962,2440.2,2440.0,25.21065]
[1751004250483,1.06941,2440.3,2440.0,25.21065]
[1751004250779,1.06941,2440.3,2440.1,0.40963]
[1751004250979,0.6598,2440.3,2440.1,0.40963]
[1751004251179,0.6598,2440.3,2440.1,4.05328765]
[1751004251692,1.0694,2440.3,2440.1,4.05328765]
[1751004252384,1.0694,2440.3,2440.1,0.6893]
[1751004258398,0.6598,2440.3,2440.1,1.09893]
[1751004258895,3.2078,2440.6,2440.2,2.95435765]
[1751004259099,1.49276991,2440.5,2440.4,2.95435765]
[1751004261198,1.08318991,2440.5,2440.4,3.36393765]
[1751004261693,1.08318991,2440.5,2440.4,4.03683765]
[1751004261897,1.08318991,2440.5,2440.4,3.62725765]
[1751004262600,1.49275991,2440.5,2440.4,3.62725765]
[1751004262992,1.08318991,2440.5,2440.4,3.62725765]
[1751004264200,1.08318991,2440.5,2440.4,0.6729]
[1751004264503,1.49275991,2440.5,2440.4,0.6729]
[1751004264993,0.40959,2440.4,2440.3,24.799]
[1751004265303,1.08318991,2440.4,2440.3,24.799]
[1751004268100,1.49276991,2440.4,2440.3,24.799]
[1751004269695,1.08318991,2440.4,2440.3,25.2086]
[1751004270296,1.08318991,2440.4,2440.3,24.799]
[1751004270496,1.49276991,2440.4,2440.3,24.799]
[1751004274003,1.08318991,2440.4,2440.3,24.799]
[1751004274197,2.95435765,2440.8,2440.3,24.799]
[1751004274198,5.63958097,2441.0,2440.4,1.02397]
[1751004274506,1.49269367,2440.9,2440.7,2.95435765]
[1751004274706,0.40951,2440.9,2440.8,25.5181]
[1751004274906,1.49268699,2440.9,2440.8,25.5181]
[1751004275702,1.08317699,2440.9,2440.8,25.5181]
[1751004275893,1.08317699,2440.9,2440.8,32.27062]
[1751004276292,1.08317699,2440.9,2440.8,35.22497765]
[1751004279402,3.2078,2441.4,2440.8,39.81545765]
[1751004279606,1.08280628,2441.3,2441.2,2.95435765]
[1751004279903,1.08280628,2441.3,2441.2,34.09335765]
[1751004280900,1.08280628,2441.3,2441.2,31.139]
[1751004281297,1.49223628,2441.3,2441.2,31.139]
[1751004281701,1.08280628,2441.3,2441.2,31.139]
[1751004282401,1.08280628,2441.3,2441.2,31.54845]
[1751004282595,1.08280628,2441.3,2441.2,34.50280765]
[1751004283008,1.08280628,2441.3,2441.2,34.09335765]
[1751004283508,1.08280628,2441.3,2441.2,34.50280765]